[Event "Summer Chess Classic-A 2022"]
[Site "Saint Louis"]
[Date "2022.06.05"]
[Round "4.4"]
[White "Oparin, Grigoriy"]
[Black "Theodorou, Nikolas"]
[Result "1/2-1/2"]
[ECO "C50"]
[WhiteElo "2685"]
[BlackElo "2567"]
[Annotator "TA"]
[PlyCount "88"]
[EventDate "2022.05.31"]
[EventType "tourn"]
[EventCountry "USA"]
[SourceTitle "playchess.com"]
[Source "ChessBase"]
[SourceQuality "1"]
[TimeControl "40/5400+30:1800+30"]

{[%evp 10,88,23,2,26,0,2,0,43,41,45,41,37,41,47,44,50,35,48,22,18,25,20,20,34,34,39,39,43,23,30,37,18,0,32,37,29,35,39,30,27,10,18,12,22,0,0,0,0,0,0,0,0,0,0,0,0,0,14,0,18,0,0,0,0,0,0,0,-7,-12,0,0,0,0,0,-25,0,0,0,0,6]} 1. e4 {[%emt 0:00:03]} e5 {[%emt 0:00:41]} 2. Nf3 {[%emt 0:00:06]} Nc6 {[%emt 0:00:06]} 3. Bc4 {[%emt 0:00:13]} Nf6 {[%emt 0:00:31]} 4. d3 {[%emt 0:00:15]} Bc5 {[%emt 0:00:20]} 5. Nc3 {[%emt 0:00:21]} O-O {[%emt 0:02:18]} 6. h3 {[%emt 0:07:02]} Na5 {[%emt 0:07:48] C50: Hungarian Defence and Giuoco Pianissimo.} 7. Bb3 {[%emt 0:09:27] [#]} (7. Nxe5 {seems wilder.} Qe7 8. Bxf7+ Rxf7 9. Nxf7 Qxf7 10. O-O) 7... Nxb3 $146 {[%emt 0:09:46]} ({Predecessor:} 7... d6 8. O-O h6 9. Qe2 a6 10. Be3 Bxe3 11. Qxe3 Bd7 12. d4 exd4 13. Qxd4 c5 14. Qd3 {½-½ (33) Jemec,V (2420)-Jean,P (2154) ICCF email 2015}) 8. axb3 {[%emt 0:00:05]} d5 {[%emt 0:02:26]} 9. Bg5 {[%emt 0:05:12] Hoping for Nxd5.} dxe4 {[%emt 0:02:25]} 10. Nxe4 {[%emt 0:00:38]} Be7 {[%emt 0:14:07]} 11. Bxf6 {[%emt 0:00:17]} Bxf6 {[%emt 0:00:03]} 12. O-O {[%emt 0:00:13]} Re8 {[%emt 0:12:50]} 13. Re1 {[%emt 0:00:40]} Bf5 {[%emt 0:00:05]} 14. Ra5 {[%emt 0:22:16]} Bxe4 {[%emt 0:01:03]} 15. Rxe4 {[%emt 0:00:05]} Re6 {[%emt 0:09:49]} 16. Qe2 {[%emt 0:01:53][%cal Rf3e5]} (16. Nxe5 b6 17. Nxf7 Kxf7 18. Qh5+ Kg8 19. Rxe6 bxa5 $17) 16... Qe8 {[%emt 0:00:46]} 17. h4 {[%emt 0:13:50]} ({Not} 17. Nxe5 $2 b6 18. Rd5 c6 19. Nxc6 Qxc6 $19) 17... a6 {[%emt 0:06:40]} 18. Ng5 {[%emt 0:10:57]} ({Don't go for} 18. Nxe5 $2 b6 19. Rd5 c6 20. Nxc6 Qxc6 $19) 18... Re7 {[%emt 0:00:10]} 19. Re3 {[%emt 0:00:49]} b6 {[%emt 0:09:41]} 20. Ra4 {[%emt 0:01:00]} g6 $1 {[%emt 0:04:12]} 21. Nf3 {[%emt 0:10:48]} (21. Qf3 {with more complications.} Bg7 22. g4 Qf8 23. Qh3) 21... Qc6 {[%emt 0:02:40]} 22. Rae4 {[%emt 0:04:58][%cal Rf3e5]} Rae8 {[%emt 0:00:47]} 23. g4 {[%emt 0:00:42][%cal Bg2g4,Bg4g5][%mdl 32]} Bg7 {[%emt 0:03:33]} 24. g5 {[%emt 0:00:23]} Re6 {[%emt 0:00:20]} 25. b4 {[%emt 0:03:35]} (25. h5 $5 {[%cal Rh5h6]}) 25... Qd6 {[%emt 0:01:14]} 26. c3 {[%emt 0:00:30][%cal Oh4h5]} h5 {[%emt 0:03:25]} 27. Kg2 {[%emt 0:01:49]} (27. gxh6 $5 Bxh6 28. Ng5 $14) 27... Qd5 {[%emt 0:01:06]} 28. Kg1 {[%emt 0:00:19]} Qd6 {[%emt 0:00:05]} 29. Nd2 {[%emt 0:00:58]} Qd5 {[%emt 0:00:50]} 30. Nf3 {[%emt 0:01:57]} Qd6 {[%emt 0:00:12]} 31. Qe1 {[%emt 0:01:05]} Qd5 {[%emt 0:00:57]} 32. Qa1 {[%emt 0:00:35]} Qb7 {[%emt 0:01:13]} 33. Qa2 {[%emt 0:00:28]} Kh7 {[%emt 0:00:45]} 34. Qc4 {[%emt 0:00:47]} R8e7 {[%emt 0:01:05]} 35. b5 {[%emt 0:01:17]} axb5 {[%emt 0:00:33]} 36. Qxb5 {[%emt 0:00:04]} Qa8 {[%emt 0:00:48]} 37. Re1 {[%emt 0:02:17]} (37. Nxe5 $2 Rxe5 38. Rxe5 Rxe5 39. Rxe5 c6 40. Qxb6 Bxe5 $19) 37... Qc8 {[%emt 0:00:47]} 38. Qc4 {[%emt 0:00:31]} ({Don't blunder} 38. Nxe5 $2 Rxe5 39. Rxe5 Qg4+ 40. Kf1 Qh3+ 41. Kg1 Qg4+ 42. Kf1 Qh3+ 43. Kg1 Qg4+ $19) 38... Qd7 {[%emt 0:01:06]} 39. R1e3 {[%emt 0:00:14]} Qd8 {[%emt 0:00:34]} 40. b4 {[%emt 0:01:08]} c6 {[%emt 0:01:00]} 41. Qa2 {[%emt 0:03:39]} Qd5 {[%emt 0:01:22]} 42. Qe2 {[%emt 0:00:58]} Qb3 {[%emt 0:00:57]} 43. Qe1 {[%emt 0:01:06]} Rd7 {[%emt 0:02:27]} 44. Kg2 {[%emt 0:03:09]} Qc2 {[%emt 0:03:37] Weighted Error Value: White=0.05 (flawless) /Black=0.05 (flawless)} 1/2-1/2

[Event "Summer Chess Classic-A 2022"]
[Site "Saint Louis"]
[Date "2022.06.05"]
[Round "4.5"]
[White "Yu, Yangyi"]
[Black "Smirin, Ilia"]
[Result "1-0"]
[ECO "B43"]
[WhiteElo "2710"]
[BlackElo "2599"]
[Annotator "TA"]
[PlyCount "105"]
[EventDate "2022.05.31"]
[EventType "tourn"]
[EventCountry "USA"]
[SourceTitle "playchess.com"]
[Source "ChessBase"]
[SourceQuality "1"]
[TimeControl "40/5400+30:1800+30"]

{[%evp 15,105,40,53,47,51,44,47,51,62,58,61,45,47,37,51,39,60,33,28,27,47,27,148,88,80,85,85,83,87,83,87,85,92,92,87,80,91,87,89,96,104,93,130,94,90,83,103,93,94,93,86,87,100,100,95,100,114,114,114,101,109,77,83,83,94,69,69,69,68,51,54,64,61,62,114,116,112,111,112,91,93,93,141,141,218,236,224,231,250,250,29962,489]} 1. e4 {[%emt 0:00:06] Moradiabadi,E} c5 {[%emt 0:04:16]} 2. Nf3 {[%emt 0:00:11]} e6 {[%emt 0:00:14]} 3. d4 {[%emt 0:00:22]} cxd4 {[%emt 0:00:07]} 4. Nxd4 {[%emt 0:00:09]} a6 {[%emt 0:00:17]} 5. Nc3 {[%emt 0:00:34]} b5 {[%emt 0:00:56]} 6. Bd3 {[%emt 0:00:24]} Qb6 {[%emt 0:01:47]} 7. Nf3 {[%emt 0:01:04]} Nc6 {[%emt 0:00:21]} 8. O-O {[%emt 0:00:15]} Qb8 {[%emt 0:01:10]} 9. Re1 {[%emt 0:00:19] B43: Sicilian: Kan Variation: 5 Nc3.} Bd6 {[%emt 0:00:45]} 10. e5 {[%emt 0:00:33]} Bc7 {[%emt 0:01:11]} 11. Bf4 {[%emt 0:01:07] White is slightly better.} Nge7 {[%emt 0:01:05]} 12. Qe2 {[%emt 0:02:28] [#]} f5 $146 {[%emt 0:10:37]} ({Predecessor:} 12... Ng6 13. Bg3 Bb7 14. Rad1 Nce7 15. Be4 Bxe4 16. Nxe4 O-O 17. Rxd7 Nd5 18. Nd6 Nb6 19. Rxf7 Rxf7 20. Nxf7 Kxf7 {0-1 (30) Grischuk,A (2746)-Svidler,P (2739) Khanty-Mansiysk 2011 CBM 145 [Moradiabadi,E]}) 13. exf6 $1 {[%emt 0:01:37]} Bxf4 {[%emt 0:00:37]} 14. fxe7 {[%emt 0:00:09]} Nxe7 {[%emt 0:00:13]} 15. g3 {[%emt 0:02:32]} Bh6 {[%emt 0:04:14]} 16. Ng5 {[%emt 0:15:21] Strongly threatening Qh5+.} g6 {[%emt 0:02:23] Prevents Qh5.} 17. Qg4 {[%emt 0:01:24][%cal Og5h7]} Qb6 {[%emt 0:18:19]} 18. Qh4 {[%emt 0:09:55]} (18. Nf7 $2 Kxf7 19. Nxb5 (19. Qf3+ $2 Kg7 $19) 19... Bb7 $19) (18. Be4 $5 {[%cal Re4a8]} Rb8 19. Qh4 Bxg5 20. Qxg5 $14) 18... Bg7 {[%emt 0:00:13]} (18... Bxg5 $11 19. Qxg5 O-O) 19. Nxe6 {[%emt 0:02:58] 0x0.001e35dcadb2dp-1022s more active pieces. The black rooks are badly placed.} dxe6 $16 {[%emt 0:00:11] [#]} 20. Qxe7+ $1 {[%emt 0:00:08][%mdl 64] Remove Defender, Decoy} Kxe7 {[%emt 0:00:03]} 21. Nd5+ $1 {[%emt 0:00:08]} Kf7 {[%emt 0:00:12]} 22. Nxb6 {[%emt 0:00:06]} Rb8 {[%emt 0:00:48]} 23. Nxc8 {[%emt 0:01:34]} Rhxc8 {[%emt 0:00:04]} 24. Rab1 {[%emt 0:00:57]} Rc5 {[%emt 0:01:12]} 25. Re4 {[%emt 0:06:28]} Re5 {[%emt 0:01:32]} 26. Rf4+ {[%emt 0:01:42]} Bf6 {[%emt 0:01:45]} 27. h4 {[%emt 0:01:30]} Ke7 {[%emt 0:04:09]} 28. Kg2 {[%emt 0:01:12]} a5 {[%emt 0:00:47]} 29. a4 {[%emt 0:03:55]} bxa4 {[%emt 0:01:51]} 30. Rxa4 {[%emt 0:00:05]} Rb4 {[%emt 0:03:49]} 31. Rba1 {[%emt 0:01:19] Threatens to win with Rxb4.} Rxb2 {[%emt 0:04:25]} 32. Rxa5 {[%emt 0:00:08]} Rxa5 {[%emt 0:00:03]} 33. Rxa5 {[%emt 0:00:09][%mdl 4096] Endgame Hoping for Ra7+. KRB-KRB} Kf7 {[%emt 0:00:19]} 34. h5 {[%emt 0:06:19]} Rb7 {[%emt 0:00:11]} 35. f4 {[%emt 0:05:06]} Kg7 {[%emt 0:07:15]} 36. Kf3 {[%emt 0:02:08]} Rf7 {[%emt 0:03:41]} 37. Kg4 {[%emt 0:02:37]} Re7 {[%emt 0:02:58]} 38. Ra6 {[%emt 0:03:59]} gxh5+ {[%emt 0:04:42]} 39. Kxh5 {[%emt 0:00:17]} e5 {[%emt 0:00:18]} 40. Ra4 {[%emt 0:02:30]} exf4 {[%emt 0:11:29]} 41. gxf4 {[%emt 0:30:10]} Bc3 {[%emt 0:30:22]} 42. Ra6 {[%emt 0:05:32]} Bd2 {[%emt 0:03:14]} 43. Kg4 {[%emt 0:09:51]} h5+ {[%emt 0:06:47]} 44. Kg5 {[%emt 0:01:05]} h4 {[%emt 0:00:00]} (44... Rd7 $14) 45. Kg4 $1 {[%emt 0:00:00]} ({Much worse is} 45. Kxh4 $6 Bxf4 46. Kg4 Bc1 $11) 45... Rd7 {[%emt 0:00:00]} 46. Ra4 $1 {[%emt 0:00:00] Inhibits Rd4.} Be1 {[%emt 0:00:00]} 47. f5 $1 {[%emt 0:00:00]} Rf7 {[%emt 0:00:00]} 48. Re4 {[%emt 0:00:00]} Bg3 {[%emt 0:00:00] [#]} ({Black should try} 48... Bf2) 49. Bc4 $1 {[%emt 0:00:00]} Rc7 {[%emt 0:00:44]} (49... Rf6 $16 50. Re7+ Kf8) 50. Bb3 $18 {[%emt 0:00:00]} Rc6 {[%emt 0:02:30] [#]} 51. Kg5 {[%emt 0:00:00][%cal Of5f6] f6+! is the strong threat.} h3 {[%emt 0:00:04]} 52. Re7+ {[%emt 0:00:00]} Kh8 $2 {[%emt 0:01:11]} (52... Kf8 $18 53. Rf7+ Ke8) 53. f6 {[%emt 0:00:00] Weighted Error Value: White=0.05 (flawless) /Black=0.27 (precise)} (53. Re8+ $142 Kh7 54. Bg8+ Kg7 55. Bd5 (55. f6+ Rxf6 56. Bd5 Bf4+ 57. Kg4 h2 $11) 55... Bh4+ 56. Kxh4 Rc5 57. c4 h2 58. Re1) 1-0

[Event "Summer Chess Classic-A 2022"]
[Site "Saint Louis"]
[Date "2022.06.06"]
[Round "5.1"]
[White "Theodorou, Nikolas"]
[Black "Yu, Yangyi"]
[Result "1/2-1/2"]
[ECO "E06"]
[WhiteElo "2567"]
[BlackElo "2710"]
[Annotator "TA"]
[PlyCount "93"]
[EventDate "2022.05.31"]
[EventType "tourn"]
[EventCountry "USA"]
[SourceTitle "playchess.com"]
[Source "ChessBase"]
[SourceQuality "1"]
[TimeControl "40/5400+30:1800+30"]

{[%evp 16,93,14,0,0,0,0,7,0,5,7,0,0,0,10,1,45,31,32,18,17,21,15,16,16,13,24,39,69,59,44,54,60,63,54,64,57,38,100,70,72,76,90,86,100,86,73,75,91,37,22,15,19,7,36,33,30,21,15,18,38,23,63,68,60,54,56,57,70,68,68,68,68,62,113,0,7,0,0,0]} 1. d4 {[%emt 0:00:04]} Nf6 {[%emt 0:00:22]} 2. c4 {[%emt 0:00:21]} e6 {[%emt 0:01:10]} 3. Nf3 {[%emt 0:00:31]} d5 {[%emt 0:00:38]} 4. g3 {[%emt 0:00:22]} Be7 {[%emt 0:00:39]} 5. Bg2 {[%emt 0:00:25]} O-O {[%emt 0:00:14]} 6. O-O {[%emt 0:00:33]} c6 {[%emt 0:01:53]} 7. Qc2 {[%emt 0:01:32]} b6 $1 {[%emt 0:00:40][%mdl 4] is more profitable than 7...Nbd7 at the moment.} 8. Bf4 {[%emt 0:00:24]} Bb7 {[%emt 0:05:27]} 9. Nbd2 {[%emt 0:01:00]} Nh5 {[%emt 0:03:14] E06: Closed Catalan: Early deviations.} 10. e3 {[%emt 0:08:14]} Nd7 {[%emt 0:03:11]} 11. cxd5 {[%emt 0:01:57]} exd5 {[%emt 0:02:07]} 12. h4 {[%emt 0:00:22] [#]} Re8 $146 {[%emt 0:06:05]} ({Predecessor:} 12... c5 13. Nb1 b5 14. Ng5 g6 15. Nc3 cxd4 16. Nxd5 Rc8 17. Qd1 Bxd5 18. Bxd5 Nxf4 19. exf4 {½-½ (32) Shpakovsky,A (2546)-Rallabandi,P (2488) ICCF email 2020}) 13. Rad1 {[%emt 0:05:30]} Rc8 {[%emt 0:03:39]} 14. Nb1 {[%emt 0:01:50][%cal Bd2b1,Bb1c3,Bc3a4][%mdl 32]} Nxf4 {[%emt 0:07:55]} 15. exf4 {[%emt 0:00:08]} c5 {[%emt 0:02:10]} 16. Nc3 {[%emt 0:03:05]} Nf6 {[%emt 0:02:42]} 17. Bh3 {[%emt 0:09:29]} (17. dxc5 {feels hotter.} Bxc5 18. Ne5 Bb4 19. Qa4) 17... Rb8 {[%emt 0:03:47]} 18. Rfe1 {[%emt 0:01:19]} cxd4 {[%emt 0:02:18]} 19. Nxd4 {[%emt 0:05:25]} Bc5 {[%emt 0:00:13] [#] Threatens to win with ...Rxe1+.} 20. Re5 {[%emt 0:01:59]} a6 {[%emt 0:05:58]} 21. Na4 {[%emt 0:05:38] Pair of Knights!} Ne4 {[%emt 0:07:31]} 22. Rxe8+ {[%emt 0:33:38]} Qxe8 {[%emt 0:00:07]} 23. Bg2 {[%emt 0:00:07]} g6 {[%emt 0:06:14]} 24. Nxc5 {[%emt 0:04:13]} bxc5 {[%emt 0:00:58]} 25. Nf3 {[%emt 0:00:02]} Qe7 {[%emt 0:02:40]} 26. h5 {[%emt 0:00:08]} (26. Ne5 {looks sharper.} f5 27. Qb3 Qd6 28. g4) 26... Nf6 {[%emt 0:02:07]} (26... gxh5 $14 27. Ne5 Nf6) 27. hxg6 {[%emt 0:00:53]} hxg6 {[%emt 0:00:05]} 28. f5 {[%emt 0:01:17]} Qe4 {[%emt 0:02:57]} 29. Qxc5 {[%emt 0:01:04]} Qxf5 {[%emt 0:00:06]} 30. Qc7 {[%emt 0:05:04]} Qc8 {[%emt 0:00:07]} 31. Qf4 {[%emt 0:00:07] White is much more active.} Qd8 {[%emt 0:00:05]} 32. Nd4 {[%emt 0:01:51]} (32. Ne5 $16 {Strongly threatening g4.} Rc8 33. Rd3) 32... Rc8 $14 {[%emt 0:00:06]} 33. Bf3 {[%emt 0:04:22]} Ne4 {[%emt 0:00:37]} 34. Kg2 {[%emt 0:00:35]} Qf6 {[%emt 0:00:31]} 35. Qxf6 {[%emt 0:00:32]} Nxf6 {[%emt 0:00:02]} 36. Be2 {[%emt 0:00:37]} a5 {[%emt 0:00:57]} 37. f3 {[%emt 0:00:47]} Kf8 {[%emt 0:01:57]} 38. Kf2 {[%emt 0:00:32]} Ne8 {[%emt 0:01:31]} 39. Rd3 {[%emt 0:01:04]} Nd6 {[%emt 0:10:13]} 40. Ra3 {[%emt 0:00:54]} Nc4 {[%emt 0:05:09]} 41. Bxc4 {[%emt 0:32:29]} dxc4 {[%emt 0:33:24]} 42. Rxa5 {[%emt 0:00:00] KRB-KRN} c3 {[%emt 0:00:00]} 43. bxc3 {[%emt 0:00:00]} Rxc3 {[%emt 0:00:00]} 44. Rb5 {[%emt 0:00:00]} Rd3 {[%emt 0:00:00]} (44... Bc8 $14) 45. Rb4 {[%emt 0:00:00]} (45. Rxb7 $16 Rxd4 46. Ra7) 45... Bd5 $11 {[%emt 0:00:00] Inhibits Nc6.} 46. a4 {[%emt 0:00:00]} Ke7 {[%emt 0:00:00]} 47. Ke2 {[%emt 0:00:00] Weighted Error Value: White=0.10 (very precise) /Black=0.08 (flawless)} 1/2-1/2

[Event "Summer Chess Classic-A 2022"]
[Site "Saint Louis"]
[Date "2022.06.06"]
[Round "5.2"]
[White "Sevian, Samuel"]
[Black "Oparin, Grigoriy"]
[Result "1/2-1/2"]
[ECO "A34"]
[WhiteElo "2703"]
[BlackElo "2685"]
[Annotator "TA"]
[PlyCount "80"]
[EventDate "2022.05.31"]
[EventType "tourn"]
[EventCountry "USA"]
[SourceTitle "playchess.com"]
[Source "ChessBase"]
[SourceQuality "1"]
[TimeControl "40/5400+30:1800+30"]

{[%evp 13,80,12,12,15,16,18,12,15,13,1,21,9,14,0,17,22,18,11,13,7,1,12,5,5,4,0,0,-1,0,0,0,0,0,0,0,0,0,0,0,0,0,0,0,0,0,0,0,0,0,0,0,0,0,0,0,0,0,0,0,0,0,0,0,0,0,0,0,0,0]} 1. c4 {[%emt 0:02:22]} Nf6 {[%emt 0:00:11]} 2. Nc3 {[%emt 0:00:11]} c5 {[%emt 0:00:19]} 3. Nf3 {[%emt 0:00:28]} e6 {[%emt 0:00:22][%cal Be7e6,Be6d5][%mdl 32]} 4. e4 {[%emt 0:00:16]} Nc6 {[%emt 0:00:50]} 5. Be2 {[%emt 0:00:29]} d5 {[%emt 0:01:36]} 6. exd5 {[%emt 0:02:19]} exd5 {[%emt 0:00:12]} 7. d4 {[%emt 0:00:05]} cxd4 {[%emt 0:01:11] The position is equal.} 8. Nxd4 {[%emt 0:00:51] A34: Symmetrical English: 2 Nc3, lines with ...d5.} dxc4 {[%emt 0:00:15]} (8... Bc5 {is interesting.} 9. Nb3 Bb4 10. O-O Be6) 9. Nxc6 {[%emt 0:11:59][%csl Gc6][%cal Rd1d8] [#]} (9. Be3 {seems wilder.} Nxd4 10. Bxd4 Be6 11. O-O) 9... Qxd1+ {[%emt 0:00:09]} 10. Nxd1 {[%emt 0:00:05] And now Ne5 would win.} bxc6 {[%emt 0:00:05]} 11. Bxc4 {[%emt 0:00:15]} Nd5 {[%emt 0:02:59]} 12. Bd2 {[%emt 0:01:13]} Be6 {[%emt 0:04:07]} 13. Rc1 {[%emt 0:00:44] [#]} Rb8 $146 {[%emt 0:08:55]} ({Predecessor:} 13... Be7 14. Ne3 O-O 15. O-O a5 16. Rfd1 Rfd8 17. Nxd5 cxd5 18. Bb5 a4 {½-½ (18) Deac,B (2626)-Sychev,K (2563) Moscow 2020}) 14. O-O {[%emt 0:03:24]} Bd6 {[%emt 0:12:34]} 15. Bb3 {[%emt 0:14:57]} Bf4 {[%emt 0:01:15]} 16. Bxf4 {[%emt 0:22:36]} Nxf4 {[%emt 0:00:05]} 17. Bc4 {[%emt 0:01:27] Inhibits Ne2+.} Rb4 {[%emt 0:18:48]} 18. Re1 {[%emt 0:00:36]} O-O {[%emt 0:01:25]} 19. Bf1 {[%emt 0:17:18]} Bxa2 {[%emt 0:00:23]} 20. Rxc6 {[%emt 0:00:05]} Bb3 {[%emt 0:02:14]} 21. Ra6 {[%emt 0:01:54]} Bxd1 {[%emt 0:00:58]} 22. Rxd1 {[%emt 0:00:06]} Rxb2 {[%emt 0:00:03]} 23. Rxa7 {[%emt 0:04:44]} Ne2+ {[%emt 0:00:29]} 24. Bxe2 {[%emt 0:02:08]} Rxe2 $11 {[%emt 0:00:04][%mdl 4096] Endgame KRR-KRR} 25. g3 {[%emt 0:00:03]} g6 {[%emt 0:00:06]} 26. Kg2 {[%emt 0:00:07]} Kg7 {[%emt 0:00:06]} 27. Rd3 {[%emt 0:00:08]} Re6 {[%emt 0:00:07]} 28. h4 {[%emt 0:00:10]} h5 {[%emt 0:00:03]} 29. Raa3 {[%emt 0:00:10]} Rf6 {[%emt 0:00:08]} 30. Rf3 {[%emt 0:00:10]} Rxf3 {[%emt 0:00:04]} 31. Rxf3 {[%emt 0:00:07] KR-KR} Ra8 {[%emt 0:00:03]} 32. Rf4 {[%emt 0:00:07]} Ra5 {[%emt 0:00:05]} 33. Kf3 {[%emt 0:00:07]} Ra8 {[%emt 0:00:03]} 34. Rb4 {[%emt 0:00:04]} Ra3+ {[%emt 0:00:05]} 35. Kg2 {[%emt 0:00:04]} Ra8 {[%emt 0:00:04]} 36. Rb6 {[%emt 0:00:03]} Ra3 {[%emt 0:00:05]} 37. Rd6 {[%emt 0:00:04]} Rb3 {[%emt 0:00:04]} 38. Rd2 {[%emt 0:00:04]} Ra3 {[%emt 0:00:03]} 39. Re2 {[%emt 0:00:03]} Rb3 {[%emt 0:00:03]} 40. Ra2 {[%emt 0:00:05]} Rc3 {[%emt 0:00:04] A balanced but interesting game.  Weighted Error Value: White=0.02 (flawless) /Black=0.02 (flawless)} 1/2-1/2

[Event "Summer Chess Classic-A 2022"]
[Site "Saint Louis"]
[Date "2022.06.06"]
[Round "5.3"]
[White "Mishra, Abhimanyu"]
[Black "Gledura, Benjamin"]
[Result "1/2-1/2"]
[ECO "C55"]
[WhiteElo "2535"]
[BlackElo "2644"]
[Annotator "TA"]
[PlyCount "107"]
[EventDate "2022.05.31"]
[EventType "tourn"]
[EventCountry "USA"]
[SourceTitle "playchess.com"]
[Source "ChessBase"]
[SourceQuality "1"]
[TimeControl "40/5400+30:1800+30"]

{[%evp 12,107,37,27,35,32,25,35,35,34,37,27,38,11,14,0,0,-16,-19,-8,-10,-8,0,-46,-4,-15,-10,-28,-14,-37,0,-33,0,-29,19,0,8,-71,-61,-84,53,75,81,52,41,53,54,69,47,64,62,22,21,0,0,0,0,0,0,0,0,0,13,15,122,122,128,64,86,0,145,85,87,72,90,89,87,0,0,0,0,0,0,0,0,0,0,0,0,0,0,0,0,0,0,0,149,80]} 1. e4 {[%emt 0:00:02]} e5 {[%emt 0:00:16]} 2. Nf3 {[%emt 0:00:15]} Nc6 {[%emt 0:00:09]} 3. Bc4 {[%emt 0:00:39]} Nf6 {[%emt 0:00:30]} 4. d3 {[%emt 0:00:39]} Be7 {[%emt 0:00:29]} 5. O-O {[%emt 0:00:33]} O-O {[%emt 0:00:08]} 6. Re1 {[%emt 0:01:17]} d6 {[%emt 0:01:02]} 7. a4 {[%emt 0:00:26]} a5 {[%emt 0:00:22] 7...h6 is setting a new trend. C55: Two Knights: 4 d3, 4 d4 exd4 5 e5 and Max Lange Attack.} 8. c3 {[%emt 0:03:22]} Be6 {[%emt 0:00:51]} 9. Bxe6 {[%emt 0:02:05]} fxe6 {[%emt 0:00:08] White is slightly better.} 10. Na3 {[%emt 0:00:49] [#]} h6 $146 {[%emt 0:03:18]} ({Predecessor:} 10... Qd7 11. Nb5 Rae8 12. d4 exd4 13. Nbxd4 Nxd4 14. Nxd4 Bd8 15. Nb3 c6 16. f3 e5 {½-½ (58) Murphy,C (2382)-Balaji,A (2273) London 2021}) 11. Nb5 {[%emt 0:06:01]} Qd7 {[%emt 0:04:09]} 12. h3 {[%emt 0:04:04]} Rf7 {[%emt 0:08:40]} 13. Be3 {[%emt 0:06:01]} Raf8 {[%emt 0:08:29]} 14. Qe2 {[%emt 0:03:37]} Nh5 {[%emt 0:06:32]} 15. Rad1 {[%emt 0:14:47][%cal Of3e5]} Nf4 {[%emt 0:11:20]} 16. Bxf4 {[%emt 0:00:52]} Rxf4 {[%emt 0:00:07]} 17. Rf1 {[%emt 0:10:43]} (17. d4 $11) 17... Bd8 {[%emt 0:08:06][%cal Of4f3]} (17... Rxf3 $5 18. gxf3 Bg5 $11) 18. Nh2 {[%emt 0:04:52][%cal Bf3h2,Bh2g4,Bg4e3,Be3g2][%mdl 32]} Ne7 {[%emt 0:01:07]} 19. Ng4 {[%emt 0:02:55]} h5 {[%emt 0:12:24]} 20. Ne3 {[%emt 0:02:22]} Qe8 {[%emt 0:00:30]} (20... c6 $5 {[%cal Rc6b5]} 21. Na3 Qe8 $11) 21. g3 {[%emt 0:04:37]} R4f6 {[%emt 0:00:36]} 22. h4 {[%emt 0:04:19]} Qf7 {[%emt 0:04:43]} (22... Qg6 $142) 23. Ng2 {[%emt 0:05:54]} d5 {[%emt 0:06:19]} 24. exd5 {[%emt 0:06:11]} (24. d4 $11) 24... exd5 $17 {[%emt 0:04:26] aiming for ...c6.} 25. Qxe5 {[%emt 0:01:31]} Nc6 {[%emt 0:05:17]} ({Black should play} 25... Nf5 $1 $17) 26. Qe2 $1 $14 {[%emt 0:02:29]} Re8 {[%emt 0:00:15]} 27. Qd2 {[%emt 0:02:36]} Ne5 {[%emt 0:01:03] Hoping for ...Nf3+.} 28. f4 {[%emt 0:00:53]} Ng4 {[%emt 0:00:02]} 29. Nd4 {[%emt 0:01:38]} c5 {[%emt 0:01:44]} 30. Nf3 {[%emt 0:01:07]} Qd7 {[%emt 0:00:16]} 31. b3 {[%emt 0:02:22]} b5 {[%emt 0:03:50]} 32. axb5 {[%emt 0:01:50]} Qxb5 {[%emt 0:00:01]} 33. Qc2 {[%emt 0:01:06]} Rfe6 {[%emt 0:01:55]} 34. Rfe1 {[%emt 0:02:03]} Rxe1+ {[%emt 0:00:23]} 35. Rxe1 {[%emt 0:00:29]} Rxe1+ {[%emt 0:00:07]} 36. Ngxe1 {[%emt 0:00:46]} Bf6 {[%emt 0:01:40]} 37. c4 {[%emt 0:00:51]} Qe8 {[%emt 0:01:17]} (37... Qb6 $1 $11) 38. Ng2 $1 $16 {[%emt 0:01:18]} ({Don't do} 38. cxd5 Bd4+ 39. Kh1 Bf2 $14) 38... d4 {[%emt 0:06:21]} 39. Qa2 {[%emt 0:00:51]} (39. Qd1 $16) 39... Kh7 {[%emt 0:00:15]} 40. Qc2 {[%emt 0:00:44]} (40. Kf1 $16) 40... Nh6 {[%emt 0:00:35]} (40... Kg8 $11) 41. Qf2 {[%emt 0:10:55]} (41. Qd1 $142 $1) 41... a4 {[%emt 0:08:06] [#]} 42. bxa4 {[%emt 0:02:00]} Qxa4 {[%emt 0:00:17]} 43. Qe2 {[%emt 0:00:53]} g6 {[%emt 0:02:11]} 44. Nfe1 {[%emt 0:11:52]} ({White should try} 44. Nh2 $16) 44... Qd7 $11 {[%emt 0:01:45]} 45. Qf3 {[%emt 0:02:06]} Qh3 {[%emt 0:04:54]} 46. Qb7+ {[%emt 0:01:18]} Kh8 {[%emt 0:02:03]} (46... Bg7 $2 47. Nf3 Kg8 48. Ng5 $18) 47. Qb8+ {[%emt 0:00:38]} Kh7 {[%emt 0:04:07]} 48. Qc7+ {[%emt 0:00:05]} Kg8 {[%emt 0:02:52]} 49. Qb8+ {[%emt 0:03:37]} Kg7 {[%emt 0:00:39]} 50. Qc7+ {[%emt 0:00:22]} Kg8 {[%emt 0:00:12]} ({Don't take} 50... Nf7 51. Kf2 $14) 51. Qxc5 {[%emt 0:00:52]} Qxg3 {[%emt 0:00:08]} 52. Qd5+ {[%emt 0:00:17]} Kg7 {[%emt 0:00:39]} ({Much less strong is} 52... Kh8 53. c5 $16) 53. c5 {[%emt 0:01:19] Black must now prevent c6.} Nf5 {[%emt 0:04:50] [#]} (53... Ng4 $11 {keeps the balance.} 54. Qf3 Qh2+ 55. Kf1 Bxh4) 54. Qb7+ $1 {[%emt 0:00:43] Weighted Error Value: White=0.16 (very precise) /Black=0.23 (precise)} 1/2-1/2